fUSD/lending_fUSD_20250515
["ID","MTS","AMOUNT","RATE_DAILY","PERIOD"]
[361132147,1747296649730,-400.0,0.00011387,2]
[361132148,1747296649739,-400.0,0.00011387,2]
[361132149,1747296649749,-867.53,0.00011387,2]
[361132150,1747296649759,-567.75,0.00011387,2]
[361132151,1747296649769,-400.0,0.00011387,2]
[361132152,1747296649778,-691.62,0.00011387,2]
[361132153,1747296649788,-414.55,0.00011387,2]
[361132154,1747296649798,-636.25,0.00011387,2]
[361132155,1747296649807,-400.0,0.00011387,2]
[361132156,1747296649816,-795.43,0.00011387,2]
[361132157,1747296649826,-942.94,0.00011387,2]
[361132158,1747296649835,-950.66,0.00011387,2]
[361132159,1747296649845,-482.31,0.00011387,2]
[361132160,1747296649854,-400.0,0.00011387,2]
[361132161,1747296649863,-286.1355043,0.00011387,2]
[361132162,1747296649875,-1112.67,0.00011387,2]
[361132163,1747296649885,-400.0,0.00011387,2]
[361132164,1747296649895,-400.0,0.00011387,2]
[361132165,1747296649905,-400.0,0.00011387,2]
[361132166,1747296649918,-400.0,0.00011387,2]
[361132167,1747296649927,-400.0,0.00011387,2]
[361132168,1747296649937,-400.0,0.00011387,2]
[361132169,1747296649947,-586.4,0.00011387,2]
[361132170,1747296649958,-400.0,0.00011388,2]
[361132171,1747296649972,-400.0,0.00011388,2]
[361132172,1747296649981,-400.0,0.00011388,2]
[361132173,1747296649990,-400.0,0.00011388,2]
[361132174,1747296650000,-400.0,0.00011388,2]
[361132175,1747296650011,-657.73,0.00011388,2]
[361132176,1747296650020,-400.0,0.00011388,2]
[361132177,1747296650029,-400.0,0.00011388,2]
[361132178,1747296650040,-400.0,0.00011388,2]
[361132179,1747296650049,-929.45,0.00011388,2]
[361132180,1747296650059,-402.16,0.00011388,2]
[361132181,1747296650068,-400.0,0.00011388,2]
[361132182,1747296650078,-400.0,0.00011388,2]
[361132183,1747296650088,-842.66,0.00011388,2]
[361132184,1747296650097,-482.19,0.00011388,2]
[361132185,1747296650106,-400.0,0.00011388,2]
[361132186,1747296650115,-400.0,0.00011388,2]
[361132187,1747296650125,-400.0,0.00011388,2]
[361132188,1747296650135,-400.0,0.00011388,2]
[361132189,1747296650144,-400.0,0.00011388,2]
[361132190,1747296650154,-400.0,0.00011388,2]
[361132191,1747296650164,-400.0,0.00011388,2]
[361132192,1747296650173,-487.5,0.00011388,2]
[361132193,1747296650183,-400.0,0.00011388,2]
[361132194,1747296650192,-296.96441536,0.00011388,2]
[361132195,1747296650201,-400.0,0.00011388,2]
[361132196,1747296650212,-309.59935085,0.00011388,2]
[361132197,1747296650221,-543.09,0.00011388,2]
[361132198,1747296650231,-495.89,0.00011388,2]
[361132199,1747296650241,-400.0,0.00011388,2]
[361132200,1747296650251,-400.0,0.00011388,2]
[361132201,1747296650261,-400.0,0.00011388,2]
[361132202,1747296650270,-400.0,0.00011388,2]
[361132203,1747296650280,-551.6,0.00011388,2]
[361132204,1747296650289,-400.0,0.00011388,2]
[361132205,1747296650299,-400.0,0.00011388,2]
[361132206,1747296650308,-511.43,0.00011388,2]
[361132207,1747296650318,-439.7181653,0.00011388,2]
[361132208,1747296650328,-400.0,0.00011388,2]
[361132209,1747296650338,-400.0,0.00011388,2]
[361132210,1747296650348,-432.3,0.00011388,2]
[361132211,1747296650358,-400.0,0.00011388,2]
[361132212,1747296650368,-250.0,0.00011388,2]
[361132213,1747296650378,-400.0,0.00011388,2]
[361132214,1747296650388,-400.0,0.00011388,2]
[361132215,1747296650398,-400.0,0.00011388,2]
[361132216,1747296650407,-400.0,0.00011388,2]
[361132217,1747296650417,-400.0,0.00011388,2]
[361132218,1747296650427,-547.69,0.00011388,2]
[361132219,1747296650437,-400.0,0.00011388,2]
[361132220,1747296650446,-410.45545746,0.00011388,2]
[361132221,1747296650455,-400.0,0.00011388,2]
[361132222,1747296650466,-882.17,0.00011388,2]
[361132223,1747296650475,-422.86937888,0.00011388,2]
[361132224,1747296650485,-400.0,0.00011388,2]
[361132225,1747296650494,-400.0,0.00011388,2]
[361132226,1747296650504,-400.0,0.00011388,2]
[361132227,1747296650514,-400.0,0.00011388,2]
[361132228,1747296650523,-400.0,0.00011388,2]
[361132229,1747296650534,-400.0,0.00011388,2]
[361132230,1747296650543,-400.0,0.00011388,2]
[361132231,1747296650553,-568.96,0.00011388,2]
[361132232,1747296650563,-400.0,0.00011388,2]
[361132233,1747296650573,-400.0,0.00011388,2]
[361132234,1747296650582,-400.0,0.00011388,2]
[361132235,1747296650592,-400.0,0.00011388,2]
[361132236,1747296650601,-400.0,0.00011388,2]
[361132237,1747296650610,-400.0,0.00011388,2]
[361132238,1747296650618,-442.0707358,0.00011388,2]
[361132239,1747296650626,-400.0,0.00011388,2]
[361132240,1747296650635,-400.0,0.00011388,2]
[361132241,1747296650643,-400.0,0.00011388,2]
[361132242,1747296650651,-400.0,0.00011388,2]
[361132243,1747296650659,-361.92223956,0.00011388,2]
[361132244,1747296650669,-477.10308562,0.00011388,2]
[361132245,1747296650679,-400.0,0.00011388,2]
[361132246,1747296650688,-400.0,0.00011388,2]
[361132247,1747296650696,-417.97,0.00011388,2]
[361132248,1747296650706,-400.0,0.00011388,2]
[361132249,1747296650717,-400.0,0.00011388,2]
[361132250,1747296650727,-400.0,0.00011388,2]
[361132251,1747296650736,-400.0,0.00011388,2]
[361132252,1747296650746,-400.0,0.00011388,2]
[361132253,1747296650755,-400.0,0.00011388,2]
[361132254,1747296650764,-162.64837669,0.00011388,2]
[361132255,1747296650773,-400.0,0.00011388,2]
[361132256,1747296650783,-400.0,0.00011388,2]
[361132257,1747296650792,-257.05370719,0.00011388,2]
[361132258,1747296650803,-400.0,0.00011388,2]
[361132259,1747296650813,-400.0,0.00011388,2]
[361132260,1747296650823,-412.52296227,0.00011388,2]
[361132261,1747296650834,-486.73,0.00011388,2]
[361132262,1747296650845,-400.0,0.00011388,2]
[361132263,1747296650854,-400.0,0.00011388,2]
[361132264,1747296650864,-400.0,0.00011388,2]
[361132265,1747296650876,-400.0,0.00011388,2]
[361132266,1747296650888,-400.0,0.00011388,2]
[361132267,1747296650898,-400.0,0.00011388,2]
[361132268,1747296650908,-400.0,0.00011388,2]
[361132269,1747296650918,-480.75,0.00011388,2]
[361132270,1747296650928,-400.0,0.00011388,2]
[361132271,1747296650938,-400.0,0.00011388,2]
[361132272,1747296650948,-640.44,0.00011388,2]
[361132273,1747296650958,-400.0,0.00011388,2]
[361132274,1747296650970,-400.0,0.00011388,2]
[361132275,1747296650980,-400.0,0.00011388,2]
[361132276,1747296650989,-400.0,0.00011388,2]
[361132277,1747296650999,-400.0,0.00011388,2]
[361132278,1747296651009,-400.0,0.00011388,2]
[361132279,1747296651019,-709.15,0.00011388,2]
[361132280,1747296651029,-400.0,0.00011388,2]
[361132281,1747296651039,-400.0,0.00011388,2]
[361132282,1747296651048,-745.02,0.00011388,2]
[361132283,1747296651058,-400.0,0.00011388,2]
[361132284,1747296651067,-400.0,0.00011388,2]
[361132285,1747296651076,-562.26,0.00011388,2]
[361132286,1747296651086,-400.0,0.00011388,2]
[361132287,1747296651095,-400.0,0.00011388,2]
[361132288,1747296651104,-849.73,0.00011388,2]
[361132289,1747296651114,-400.0,0.00011388,2]
[361132290,1747296651124,-523.7,0.00011388,2]
[361132291,1747296651135,-400.0,0.00011388,2]
[361132292,1747296651145,-462.38,0.00011388,2]
[361132293,1747296651155,-521.65,0.00011388,2]
[361132294,1747296651167,-400.0,0.00011388,2]
[361132295,1747296651178,-400.0,0.00011388,2]
[361132296,1747296651188,-523.67,0.00011388,2]
[361132297,1747296651198,-464.78,0.00011388,2]
[361132298,1747296651208,-400.0,0.00011388,2]
[361132299,1747296651220,-400.0,0.00011388,2]
[361132300,1747296651231,-414.9992234,0.00011388,2]
[361132301,1747296651241,-400.0,0.00011388,2]
[361132302,1747296651251,-400.0,0.00011388,2]
[361132303,1747296651261,-1240.17,0.00011388,2]
[361132304,1747296651271,-216.01613795,0.00011388,2]
[361132305,1747296651281,-400.0,0.00011388,2]
[361132306,1747296651291,-249.87036937,0.00011388,2]
[361132307,1747296651301,-400.0,0.00011388,2]
[361132308,1747296651311,-400.0,0.00011388,2]
[361132309,1747296651321,-802.39,0.00011388,2]
[361132310,1747296651330,-400.0,0.00011388,2]
[361132311,1747296651340,-1075.0,0.00011388,2]
[361132312,1747296651349,-400.0,0.00011388,2]
[361132313,1747296651359,-400.0,0.00011388,2]
[361132314,1747296651369,-400.0,0.00011388,2]
[361132315,1747296651379,-400.0,0.00011388,2]
[361132316,1747296651389,-585.6,0.00011388,2]
[361132317,1747296651399,-400.0,0.00011388,2]
[361132318,1747296651408,-2249.08,0.00011388,2]
[361132319,1747296651418,-400.0,0.00011388,2]
[361132320,1747296651428,-400.32,0.00011388,2]
[361132321,1747296651437,-400.0,0.00011388,2]
[361132322,1747296651446,-661.29,0.00011388,2]
[361132323,1747296651456,-699.61,0.00011388,2]
[361132324,1747296651466,-563.21,0.00011388,2]
[361132325,1747296651476,-850.06,0.00011388,2]
[361132326,1747296651485,-400.0,0.00011388,2]
[361132327,1747296651495,-400.0,0.00011388,2]
[361132328,1747296651505,-426.77,0.00011388,2]
[361132329,1747296651515,-400.0,0.00011388,2]
[361132330,1747296651524,-532.02,0.00011388,2]
[361132331,1747296651534,-1014.68,0.00011388,2]
[361132332,1747296651544,-400.0,0.00011388,2]
[361132333,1747296651554,-2849.87,0.00011388,2]
[361132334,1747296651564,-847.7,0.00011388,2]
[361132335,1747296651574,-400.0,0.00011388,2]
[361132336,1747296651584,-430.40355675,0.00011388,2]
[361132337,1747296651594,-400.0,0.00011388,2]
[361132338,1747296651604,-684.22,0.00011388,2]
[361132339,1747296651613,-400.0,0.00011388,2]
[361132340,1747296651623,-588.62,0.00011388,2]
[361132341,1747296651633,-312.83907134,0.00011388,2]
[361132342,1747296651643,-2495.42,0.00011388,2]
[361132343,1747296651653,-400.0,0.00011388,2]
[361132344,1747296651663,-400.0,0.00011388,2]
[361132345,1747296651675,-749.04,0.00011388,2]
[361132346,1747296651686,-400.0,0.00011388,2]
[361132347,1747296651696,-714.55,0.00011388,2]
[361132348,1747296651705,-1263.12,0.00011388,2]
[361132349,1747296651718,-400.0,0.00011388,2]
[361132350,1747296651727,-400.0,0.00011388,2]
[361132351,1747296651737,-2438.16,0.00011388,2]
[361132352,1747296651747,-400.0,0.00011388,2]
[361132353,1747296651756,-438.14,0.00011388,2]
[361132354,1747296651766,-1334.29,0.00011388,2]
[361132355,1747296651775,-400.0,0.00011388,2]
[361132356,1747296651785,-400.0,0.00011388,2]
[361132357,1747296651795,-400.0,0.00011388,2]
[361132358,1747296651805,-5052.21,0.00011388,2]
[361132359,1747296651815,-400.0,0.00011388,2]
[361132360,1747296651826,-1060.01,0.00011388,2]
[361132361,1747296651836,-400.0,0.00011388,2]
[361132362,1747296651845,-777.56,0.00011388,2]
[361132363,1747296651855,-852.78,0.00011388,2]
[361132364,1747296651865,-45394.27,0.00011388,2]
[361132365,1747296651876,-14246.61,0.00011388,2]
[361132366,1747296651887,-213.91414173,0.00011388,2]
[361132367,1747296651896,-400.0,0.00011388,2]
[361132368,1747296651907,-415.06907809,0.00011388,2]
[361132369,1747296651919,-1016.42,0.00011388,2]
[361132370,1747296651929,-400.0,0.00011388,2]
[361132371,1747296651938,-400.0,0.00011388,2]
[361132372,1747296651948,-906.39,0.00011388,2]
[361132373,1747296651959,-400.0,0.00011388,2]
[361132374,1747296651971,-732.03,0.00011388,2]
[361132375,1747296651981,-400.0,0.00011388,2]
[361132376,1747296651993,-195.41418941,0.00011388,2]
[361132377,1747296652003,-769.84,0.00011388,2]
[361132378,1747296652013,-4688.75,0.00011388,2]
[361132379,1747296652023,-695.56,0.00011388,2]
[361132380,1747296652032,-400.0,0.00011388,2]
[361132381,1747296652042,-400.0,0.00011388,2]
[361132382,1747296652053,-400.0,0.00011388,2]
[361132383,1747296652062,-3009.78,0.00011388,2]
[361132384,1747296652073,-400.0,0.00011388,2]
[361132385,1747296652082,-400.0,0.00011388,2]
[361132386,1747296652092,-400.0,0.00011388,2]
[361132387,1747296652101,-1736.19,0.00011388,2]
[361132388,1747296652110,-400.0,0.00011388,2]
[361132389,1747296652120,-400.0,0.00011388,2]
[361132390,1747296652130,-400.0,0.00011388,2]
[361132391,1747296652140,-400.0,0.00011388,2]
[361132392,1747296652149,-7785.11,0.00011388,2]
[361132393,1747296652159,-446.61,0.00011388,2]
[361132394,1747296652169,-3895.29,0.00011388,2]
[361132395,1747296652179,-400.0,0.00011388,2]
[361132396,1747296652188,-446.64,0.00011388,2]
[361132397,1747296652198,-430.41,0.00011388,2]
[361132398,1747296652208,-746.01,0.00011388,2]
[361132399,1747296652220,-412.08,0.00011388,2]
[361132400,1747296652230,-151.0,0.00011388,2]
[361132401,1747296652239,-400.0,0.00011388,2]
[361132402,1747296652249,-604.56,0.00011388,2]
[361132403,1747296652259,-436.00839927,0.00011388,2]
[361132404,1747296652269,-1335.37,0.00011388,2]
[361132405,1747296652279,-1398.41,0.00011388,2]
[361132406,1747296652288,-400.0,0.00011388,2]
[361132407,1747296652298,-549.82,0.00011388,2]
[361132408,1747296652308,-400.0,0.00011388,2]
[361132409,1747296652318,-400.0,0.00011388,2]
[361132410,1747296652327,-400.0,0.00011388,2]
[361132411,1747296652337,-151.0,0.00011388,2]
[361132412,1747296652347,-405.61,0.00011388,2]
[361132413,1747296652357,-10447.43,0.00011388,2]
[361132414,1747296652366,-400.0,0.00011388,2]
[361132415,1747296652376,-619.55,0.00011388,2]
[361132416,1747296652387,-400.0,0.00011388,2]
[361132417,1747296652397,-593.13,0.00011388,2]
[361132418,1747296652407,-400.0,0.00011388,2]
[361132419,1747296652417,-175.34874006,0.00011388,2]
[361132420,1747296652427,-400.0,0.00011388,2]
[361132421,1747296652436,-400.0,0.00011388,2]
[361132422,1747296652447,-1988.89,0.00011388,2]
[361132423,1747296652457,-400.0,0.00011388,2]
[361132424,1747296652468,-400.0,0.00011388,2]
[361132425,1747296652478,-1058.51,0.00011388,2]
[361132426,1747296652487,-400.0,0.00011388,2]
[361132427,1747296652497,-400.0,0.00011388,2]
[361132428,1747296652507,-400.0,0.00011388,2]
[361132429,1747296652517,-450.98,0.00011388,2]
[361132430,1747296652526,-674.91,0.00011388,2]
[361132431,1747296652536,-400.0,0.00011388,2]
[361132432,1747296652546,-1168.9,0.00011388,2]
[361132433,1747296652556,-151.0,0.00011388,2]
[361132434,1747296652566,-502.47,0.00011388,2]
[361132435,1747296652576,-1045.69,0.00011388,2]
[361132436,1747296652586,-778.52,0.00011388,2]
[361132437,1747296652596,-400.0,0.00011388,2]
[361132438,1747296652606,-400.0,0.00011388,2]
[361132439,1747296652616,-867.53,0.00011388,2]
[361132440,1747296652626,-277.28834638,0.00011388,2]
[361132441,1747296652636,-843.09,0.00011388,2]
[361132442,1747296652646,-180.25028467,0.00011388,2]
[361132443,1747296652655,-400.0,0.00011388,2]
[361132444,1747296652665,-405.00174186,0.00011388,2]
[361132445,1747296652675,-400.0,0.00011388,2]
[361132446,1747296652685,-400.0,0.00011388,2]
[361132447,1747296652695,-400.0,0.00011388,2]
[361132448,1747296652705,-400.0,0.00011388,2]
[361132449,1747296652716,-1157.73,0.00011388,2]
[361132450,1747296652726,-464.43,0.00011388,2]
[361132451,1747296652737,-1657.21,0.00011388,2]
[361132452,1747296652746,-844.2,0.00011388,2]
[361132453,1747296652756,-1014.19,0.00011388,2]
[361132454,1747296652766,-421.83277879,0.00011388,2]
[361132455,1747296652777,-1085.84,0.00011388,2]
[361132456,1747296652787,-400.0,0.00011388,2]
[361132457,1747296652796,-1572.23,0.00011388,2]
[361132458,1747296652806,-390.94089111,0.00011388,2]
[361132459,1747296652817,-4062.74,0.00011388,2]
[361132460,1747296652827,-400.0,0.00011388,2]
[361132461,1747296652838,-417.22,0.00011388,2]
[361132462,1747296652847,-1000.0,0.00011388,2]
[361132463,1747296652858,-400.0,0.00011388,2]
[361132464,1747296652869,-881.65,0.00011388,2]
[361132465,1747296652882,-459.53,0.00011388,2]
[361132466,1747296652892,-400.0,0.00011388,2]
[361132467,1747296652902,-5167.66,0.00011388,2]
[361132468,1747296652913,-400.0,0.00011388,2]
[361132469,1747296652924,-1912.58,0.00011388,2]
[361132470,1747296652934,-445.77,0.00011388,2]
[361132471,1747296652944,-432.20181455,0.00011388,2]
[361132472,1747296652956,-815.69,0.00011388,2]
[361132473,1747296652968,-151.0,0.00011389,2]
[361132474,1747296652978,-153.047766,0.00011389,2]
[361132475,1747296652987,-151.0,0.00011389,2]
[361132476,1747296652997,-151.0,0.00011389,2]
[361132477,1747296653007,-605.46,0.00011389,2]
[361132478,1747296653017,-400.0,0.00011389,2]
[361132479,1747296653027,-350.98756161,0.00011389,2]
[361132480,1747296653037,-400.0,0.00011389,2]
[361132481,1747296653047,-400.0,0.00011389,2]
[361132482,1747296653056,-416.97436504,0.00011389,2]
[361132483,1747296653066,-447.44822007,0.00011389,2]
[361132484,1747296653076,-400.0,0.00011389,2]
[361132485,1747296653086,-400.0,0.00011389,2]
[361132486,1747296653096,-407.53159585,0.00011389,2]
[361132487,1747296653105,-618.95,0.00011389,2]
[361132488,1747296653114,-400.0,0.00011389,2]
[361132489,1747296653124,-400.0,0.00011389,2]
[361132490,1747296653134,-400.0,0.00011389,2]
[361132491,1747296653144,-400.0,0.00011389,2]
[361132492,1747296653154,-400.0,0.00011389,2]
[361132493,1747296653163,-400.0,0.00011389,2]
[361132494,1747296653174,-400.0,0.00011389,2]
[361132495,1747296653184,-400.0,0.00011389,2]
[361132496,1747296653193,-151.060005,0.00011389,2]
[361132497,1747296653203,-688.82,0.00011389,2]
[361132498,1747296653214,-400.0,0.00011389,2]
[361132499,1747296653224,-400.0,0.00011389,2]
[361132500,1747296653234,-400.0,0.00011389,2]
[361132501,1747296653243,-462.66,0.00011389,2]
[361132502,1747296653254,-621.1,0.00011389,2]
[361132503,1747296653263,-400.0,0.00011389,2]
[361132504,1747296653273,-400.0,0.00011389,2]
[361132505,1747296653283,-400.0,0.00011389,2]
[361132506,1747296653293,-400.0,0.00011389,2]
[361132507,1747296653303,-400.0,0.00011389,2]
[361132508,1747296653313,-400.0,0.00011389,2]
[361132509,1747296653322,-400.0,0.00011389,2]
[361132510,1747296653332,-400.0,0.00011389,2]
[361132511,1747296653341,-400.0,0.00011389,2]
[361132512,1747296653351,-151.0,0.00011389,2]
[361132513,1747296653362,-1185.945215,0.00011389,2]
[361132514,1747296653372,-400.0,0.00011389,2]
[361132515,1747296653382,-400.0,0.00011389,2]
[361132516,1747296653394,-1185.945215,0.00011389,2]
[361132517,1747296653405,-400.0,0.00011389,2]
[361132518,1747296653415,-400.0,0.00011389,2]
[361132519,1747296653425,-151.0,0.00011389,2]
[361132520,1747296653435,-400.0,0.00011389,2]
[361132521,1747296653446,-400.0,0.00011389,2]
[361132522,1747296653456,-400.0,0.00011389,2]
[361132523,1747296653467,-400.0,0.00011389,2]
[361132524,1747296653477,-457.22336379,0.00011389,2]
[361132525,1747296653486,-400.0,0.00011389,2]
[361132526,1747296653496,-427.32,0.00011389,2]
[361132527,1747296653506,-400.0,0.00011389,2]
[361132528,1747296653516,-302.0,0.00011389,2]
[361132529,1747296653526,-400.0,0.00011389,2]
[361132530,1747296653536,-845.39,0.00011389,2]
[361132531,1747296653548,-400.0,0.00011389,2]
[361132532,1747296653558,-182.395184,0.00011389,2]
[361132533,1747296653568,-400.0,0.00011389,2]
[361132534,1747296653578,-400.0,0.00011389,2]
[361132535,1747296653588,-400.0,0.00011389,2]
[361132536,1747296653598,-400.0,0.00011389,2]
[361132537,1747296653608,-400.0,0.00011389,2]
[361132538,1747296653619,-403.1105143,0.00011389,2]
[361132539,1747296653629,-466.63,0.00011389,2]
[361132540,1747296653640,-400.0,0.00011389,2]
[361132541,1747296653651,-400.0,0.00011389,2]
[361132542,1747296653661,-400.0,0.00011389,2]
[361132543,1747296653672,-420.37045913,0.00011389,2]
[361132544,1747296653682,-400.0,0.00011389,2]
[361132545,1747296653692,-400.0,0.00011389,2]
[361132546,1747296653702,-400.0,0.00011389,2]
[361132547,1747296653714,-153.307011,0.00011389,2]
[361132548,1747296653723,-200.0,0.00011389,2]
[361132549,1747296653734,-518.83222766,0.00011389,2]
[361132550,1747296653744,-400.0,0.00011389,2]
[361132551,1747296653754,-232.69718163,0.00011389,2]
[361132552,1747296653765,-400.0,0.00011389,2]
[361132553,1747296654001,-400.0,0.00011389,2]
[361132554,1747296654011,-400.0,0.00011389,2]
[361132555,1747296654022,-463.73685973,0.00011389,2]
[361132556,1747296654032,-419.36580932,0.00011389,2]
[361132557,1747296654042,-400.0,0.00011389,2]
[361132558,1747296654052,-404.23989366,0.00011389,2]
[361132559,1747296654062,-410.0647983,0.00011389,2]
[361132560,1747296654072,-151.0,0.00011389,2]
[361132561,1747296654081,-400.0,0.00011389,2]
[361132562,1747296654091,-886.75,0.00011389,2]
[361132563,1747296654100,-400.0,0.00011389,2]
[361132564,1747296654109,-230.49297171,0.00011389,2]
[361132565,1747296654119,-415.69840028,0.00011389,2]
[361132566,1747296654128,-400.0,0.00011389,2]
[361132567,1747296654138,-400.0,0.00011389,2]
[361132568,1747296654147,-151.0,0.00011389,2]
[361132569,1747296654156,-414.83920598,0.00011389,2]
[361132570,1747296654166,-401.50680637,0.00011389,2]
[361132571,1747296654175,-400.33388225,0.00011389,2]
[361132572,1747296654185,-400.0,0.00011389,2]
[361132573,1747296654194,-400.0,0.00011389,2]
[361132574,1747296654204,-408.83095555,0.00011389,2]
[361132575,1747296654214,-400.0,0.00011389,2]
[361132576,1747296654223,-165.6097185,0.00011389,2]
[361132577,1747296654233,-400.0,0.00011389,2]
[361132578,1747296654242,-434.38,0.00011389,2]
[361132579,1747296654252,-181.58754918,0.00011389,2]
[361132580,1747296654262,-400.0,0.00011389,2]
[361132581,1747296654271,-400.0,0.00011389,2]
[361132582,1747296654282,-400.0,0.00011389,2]
[361132583,1747296654298,-151.0,0.00011389,2]
[361132584,1747296654307,-151.0,0.00011389,2]
[361132585,1747296654317,-151.0,0.00011389,2]
[361132586,1747296654326,-151.0,0.00011389,2]
[361132587,1747296654336,-151.330508,0.0001139,2]
[361132588,1747296654346,-151.0,0.0001139,2]
[361132589,1747296654355,-151.0,0.0001139,2]
[361132590,1747296654365,-238.57966332,0.00011392,2]
[361132591,1747296654374,-187.370086,0.00011392,2]
[361132592,1747296654385,-151.0,0.00011392,2]
[361132593,1747296654396,-184.807924,0.00011392,2]
[361132594,1747296654406,-3086.2002724,0.00011392,2]
[361132595,1747296654415,-56639.4483333,0.00011392,2]
[361132596,1747296654424,-151.0,0.00011392,2]
[361132597,1747296654434,-5564.7363547,0.00011392,2]
[361132598,1747296654444,-151.0,0.00011392,2]
[361132599,1747296654454,-31206.7706278,0.00011392,2]
[361132600,1747296654466,-910.7,0.000114,2]
[361132601,1747296654475,-364.28,0.000114,2]
[361132602,1747296654486,-1000.0,0.000114,2]
[361132603,1747296654495,-212.2,0.000114,2]
[361132604,1747296654505,-292.88730715,0.00011402,2]
[361132605,1747296654515,-165.02806332,0.00011435,2]
[361132606,1747296654525,-946.571,0.0001147,2]
[361132607,1747296654535,-358.818,0.0001147,2]
[361132608,1747296654544,-799.0,0.0001147,2]
[361132609,1747296654553,-572.593,0.0001147,2]
[361132610,1747296654563,-557.617,0.0001147,2]
[361132611,1747296654572,-926.678,0.0001147,2]
[361132612,1747296654581,-1469.378,0.0001147,2]
[361132613,1747296654591,-151.0,0.00011485,2]
[361132614,1747296654601,-151.0,0.00011486,2]
[361132615,1747296654610,-151.0,0.00011486,2]
[361132616,1747296654620,-151.0,0.00011486,2]
[361132617,1747296654630,-151.0,0.00011486,2]
[361132618,1747296654639,-151.0,0.00011486,2]
[361132619,1747296654648,-867.53,0.00011499,2]
[361132620,1747296654657,-1000.0,0.000115,2]
[361132621,1747296654666,-6824.0,0.00011503,2]
[361132622,1747296654676,-4035.0,0.00011503,2]
[361132623,1747296654686,-225.862,0.00011503,2]
[361132624,1747296654695,-854.716,0.00011503,2]
[361132625,1747296654704,-880.0,0.00011503,2]
[361132626,1747296654714,-200.0,0.00011503,2]
[361132627,1747296654724,-2751.0,0.00011507,2]
[361132628,1747296654733,-500.0,0.00011507,2]
[361132629,1747296654742,-151.0,0.00011507,2]
[361132630,1747296654751,-500.0,0.00011507,2]
[361132631,1747296654760,-248.52116044,0.00011507,2]
[361132632,1747296654770,-150.0,0.00011507,2]
[361132633,1747296654780,-150.0,0.00011507,2]
[361132634,1747296654789,-500.0,0.00011507,2]
[361132635,1747296654799,-500.0,0.00011507,2]
[361132636,1747296654808,-206.90511022,0.00011507,2]
[361132637,1747296654819,-500.0,0.00011507,2]
[361132638,1747296654829,-552.0,0.00011507,2]
[361132639,1747296654841,-162.8609911,0.00011507,2]
[361132640,1747296654851,-574.0,0.00011507,2]
[361132641,1747296654860,-157.15081086,0.00011507,2]
[361132642,1747296654871,-505.5437678,0.00011534,2]
[361132643,1747296654884,-500.0,0.00011534,2]
[361132644,1747296654894,-150.0,0.00011534,2]
[361132645,1747296654905,-150.0,0.00011534,2]
[361132646,1747296654918,-500.0,0.00011534,2]